bitfinex/quotes_ETHUSD_20220120
["timestamp","ask_amount","ask_price","bid_price","bid_amount"]
[1642673205648,0.3,3148.6,3148.1,2.76035]
[1642673206050,0.3,3148.6,3148.2,0.00852636]
[1642673207052,0.3,3148.6,3148.1,0.00909478]
[1642673208692,0.3,3148.6,3147.7,0.01136847]
[1642673210198,1.09117707,3148.1,3147.7,0.01136847]
[1642673210395,1.39117707,3148.1,3147.7,0.01136847]
[1642673210795,1.39117707,3148.1,3147.5,0.01250532]
[1642673211246,1.09117707,3148.1,3147.5,0.01250532]
[1642673211639,1.39117707,3148.1,3147.5,0.01250532]
[1642673212441,1.09117707,3148.1,3147.5,0.01250532]
[1642673212645,1.39117707,3148.1,3147.5,0.01250532]
[1642673216694,1.09117707,3148.1,3147.5,0.01250532]
[1642673218195,1.09117707,3148.1,3147.5,2.82586038]
[1642673218595,1.09117707,3148.1,3147.6,0.0119369]
[1642673219244,4.0003,3148.6,3147.6,0.0119369]
[1642673219444,4.29605,3148.6,3147.6,0.0119369]
[1642673220249,1.38110627,3148.4,3147.6,0.0119369]
[1642673220850,1.36884627,3148.4,3147.6,0.0119369]
[1642673223593,1.66884627,3148.4,3147.6,0.0119369]
[1642673224792,1.96884627,3148.4,3147.6,0.0119369]
[1642673225800,1.66884627,3148.4,3147.6,0.0119369]
[1642673226841,1.96884627,3148.4,3147.6,0.0119369]
[1642673228445,2.76336687,3148.4,3147.6,0.0119369]
[1642673228843,2.76336687,3148.4,3147.5,0.01250532]
[1642673231199,2.46336687,3148.4,3147.5,0.01250532]
[1642673237349,1.66884627,3148.4,3147.5,0.01250532]
[1642673238796,1.66427192,3148.4,3147.5,0.01250532]
[1642673239393,0.79461,3148.2,3147.5,0.01250532]
[1642673239596,3.0593645,3148.1,3147.5,0.01250532]
[1642673239794,1.79461,3148.2,3147.4,0.01307374]
[1642673239994,2.09461,3148.2,3147.4,0.01307374]
[1642673240199,2.39461,3148.2,3147.4,0.01307374]
[1642673240998,1.26076169,3147.6,3147.4,0.01307374]
[1642673241644,1.26076169,3147.6,3147.1,0.01477901]
[1642673241842,1.26076169,3147.6,3147.0,0.01534744]
[1642673245591,0.79467,3147.9,3147.0,0.01534744]
[1642673245794,5.5099,3148.2,3147.0,0.01534744]
[1642673247095,1.49682188,3147.5,3147.0,0.01534744]
[1642673254895,3.8707,3148.1,3147.1,1.20676855]
[1642673255300,3.8707,3148.1,3147.2,0.01421059]
[1642673256341,1.30065467,3147.8,3147.2,0.01421059]
[1642673256741,1.30065467,3147.8,3147.0,0.01534744]
[1642673258045,1.30065467,3147.8,3147.0,1.62159134]
[1642673258343,1.30065467,3147.8,3147.1,0.01477901]
[1642673259045,1.30065467,3147.8,3147.0,0.01534744]
[1642673259346,1.05065467,3147.8,3147.0,0.01534744]
[1642673268691,1.05065467,3147.8,3147.0,2.59195216]
[1642673269092,1.05065467,3147.8,3147.1,0.01477901]
[1642673270096,1.05065467,3147.8,3147.0,0.01534744]
[1642673270498,1.35065467,3147.8,3147.0,0.01534744]
[1642673270697,0.79473,3147.7,3147.0,0.01534744]
[1642673271347,0.79473,3147.7,3147.0,2.6079355]
[1642673271549,1.05065467,3147.8,3147.0,2.61080827]
[1642673271750,1.05065467,3147.8,3147.1,0.01477901]
[1642673272348,1.05065467,3147.8,3147.0,2.60820679]
[1642673272349,1.05065467,3147.8,3147.0,2.62355423]
[1642673272551,1.05065467,3147.8,3147.1,0.01477901]
[1642673272948,1.05065467,3147.8,3147.0,0.01534744]
[1642673273150,1.05065467,3147.8,3147.0,2.5886856]
[1642673273352,1.05065467,3147.8,3147.0,0.01534744]
[1642673273551,1.05065467,3147.8,3147.1,0.01477901]
[1642673273750,1.05065467,3147.8,3147.0,0.01534744]
[1642673273951,1.05065467,3147.8,3147.1,0.01477901]
[1642673274151,1.05065467,3147.8,3147.0,0.01534744]
[1642673275204,1.05065467,3147.8,3147.0,2.57248756]
[1642673275602,1.05065467,3147.8,3147.1,0.01477901]
[1642673276702,1.05065467,3147.8,3147.0,0.01534744]
[1642673276903,1.05065467,3147.8,3147.0,2.63180333]
[1642673277104,1.05065467,3147.8,3147.0,0.01534744]
[1642673277303,1.05065467,3147.8,3147.1,0.01477901]
[1642673277505,1.05065467,3147.8,3147.0,0.01534744]
[1642673277904,1.35065467,3147.8,3147.0,0.01534744]
[1642673278759,1.35065467,3147.8,3147.0,2.57702556]
[1642673278949,0.3,3147.7,3147.0,0.01534744]
[1642673279149,0.3,3147.7,3147.1,0.01477901]
[1642673279353,0.3,3147.7,3147.0,0.01534744]
[1642673280358,0.3,3147.7,3147.0,2.72143829]
[1642673280755,0.3,3147.7,3147.1,0.01477901]
[1642673281956,1.35065467,3147.8,3147.1,0.01477901]
[1642673282357,1.35065467,3147.8,3147.0,0.01534744]
[1642673282598,1.35065467,3147.8,3147.1,0.01477901]
[1642673282799,1.35065467,3147.8,3147.0,0.01534744]
[1642673283403,1.35065467,3147.8,3147.0,2.59544387]
[1642673283599,1.35065467,3147.8,3147.0,2.65153541]
[1642673283800,1.35065467,3147.8,3147.1,0.01477901]
[1642673284800,1.35065467,3147.8,3147.0,2.61999885]
[1642673285001,1.35065467,3147.8,3147.0,2.72434304]
[1642673285204,1.35065467,3147.8,3147.1,0.01477901]
[1642673289674,1.35065467,3147.8,3147.1,3.21477901]
[1642673290104,1.35065467,3147.8,3147.2,0.01421059]
[1642673290305,1.35065467,3147.8,3147.2,2.63033159]
[1642673290705,1.35065467,3147.8,3147.3,0.01364217]
[1642673291805,0.3,3147.7,3147.3,0.01364217]
[1642673293305,0.3,3147.7,3147.2,0.01421059]
[1642673293507,0.3,3147.7,3147.2,2.59972257]
[1642673293754,0.3,3147.7,3147.2,0.01421059]
[1642673293949,0.3,3147.7,3147.2,2.5750455]
[1642673294150,0.00170527,3147.6,3147.2,2.5750455]
[1642673294651,0.00113685,3147.5,3147.2,2.5750455]
[1642673294852,0.00113685,3147.5,3147.2,2.5730455]
[1642673295054,1.35065467,3147.8,3147.2,2.5730455]
[1642673295055,0.0022737,3147.7,3147.2,2.5730455]
[1642673295455,0.0022737,3147.7,3147.1,2.96564217]
[1642673295656,0.0022737,3147.7,3147.2,2.61550986]
[1642673296256,0.7970037,3147.7,3147.2,2.61550986]
[1642673296657,0.7970037,3147.7,3147.1,2.96564217]
[1642673297058,0.7970037,3147.7,3147.1,2.95464217]
[1642673297498,1.0970037,3147.7,3147.1,2.95464217]
[1642673297898,1.0970037,3147.7,3147.1,2.95264217]
[1642673299100,2.0970037,3147.7,3147.1,2.95264217]
[1642673299303,3.81152673,3147.6,3147.1,2.95264217]
[1642673299502,0.79494,3147.4,3147.1,2.95264217]
[1642673299802,5.59498,3147.2,3147.1,2.95264217]
[1642673300000,5.59498,3147.2,3146.9,0.71497695]
[1642673300001,4.35,3147.1,3146.9,0.71497695]
[1642673300206,6.21001684,3147.0,3146.9,0.71497695]
[1642673300405,2.65894628,3147.0,3146.9,7.695e-05]
[1642673300604,4.766,3147.0,3146.9,0.00235064]
[1642673301006,4.9,3146.9,3145.7,0.72148251]
[1642673301261,1.5900977,3146.7,3145.7,0.72148251]
[1642673301451,1.8900977,3146.7,3145.8,0.00625266]
[1642673301650,1.33084807,3146.4,3145.8,0.00625266]
[1642673301851,2.93700673,3146.3,3145.8,0.00625266]
[1642673302050,0.466,3146.2,3145.8,0.00625266]
[1642673302253,7.0026,3146.2,3145.8,0.00625266]
[1642673302452,7.0026,3146.2,3144.7,0.01250532]
[1642673302453,0.3,3146.1,3144.7,0.01250532]
[1642673302653,0.766,3146.1,3144.7,0.01250532]
[1642673302955,1.27301536,3145.3,3144.7,0.01250532]
[1642673303154,0.3,3145.3,3144.7,0.01250532]
[1642673303353,0.3,3145.3,3144.8,0.72172413]
[1642673303654,0.466,3145.7,3144.8,0.72172413]
[1642673303857,0.766,3145.7,3144.9,0.01136847]
[1642673304057,1.33715652,3145.5,3144.9,0.01136847]
[1642673304456,2.93715652,3145.5,3144.9,0.01136847]
[1642673304655,2.89726497,3145.4,3144.9,0.01136847]
[1642673304855,3.73245652,3145.5,3144.9,0.01136847]
[1642673305101,3.73245652,3145.5,3144.2,0.01534743]
[1642673305304,2.9062093,3145.4,3144.2,0.01534743]
[1642673305604,1.44439616,3144.7,3144.2,0.01534743]
[1642673305803,1.74439616,3144.7,3144.3,0.72181163]
[1642673306304,1.74439616,3144.7,3144.4,0.01421059]
[1642673306704,8.57527212,3144.6,3144.3,0.72181163]
[1642673307004,8.57527212,3144.6,3142.8,3.6682]
[1642673307005,0.79572,3144.3,3142.8,3.6682]
[1642673307204,0.466,3144.2,3142.8,3.6682]
[1642673307404,0.466,3144.2,3142.9,0.00852635]
[1642673307703,0.466,3144.2,3143.3,1.33554976]
[1642673307704,1.49755148,3144.0,3143.3,1.33554976]
[1642673307902,1.96355148,3144.0,3142.9,0.00852635]
[1642673308102,2.26355148,3144.0,3143.4,0.00568423]
[1642673309152,1.79755148,3144.0,3143.3,1.39426267]
[1642673309350,1.49755148,3144.0,3143.3,1.39426267]
[1642673309551,1.49755148,3144.0,3143.4,0.00568423]
[1642673309751,1.49755148,3144.0,3143.4,2.5845539]
[1642673309950,1.49755148,3144.0,3143.4,0.00568423]
[1642673310154,1.49755148,3144.0,3143.5,0.00511581]
[1642673310353,3.8706,3144.3,3143.4,0.00568423]
[1642673310554,4.4554,3144.4,3143.4,2.65906585]
[1642673310754,0.766,3144.4,3143.4,2.65906585]
[1642673310955,1.066,3144.4,3143.5,0.00511581]
[1642673311155,0.766,3144.4,3143.5,0.00511581]
[1642673311555,0.00851509,3144.0,3143.5,0.00511581]
[1642673311757,0.00851509,3144.0,3143.8,1.16482495]
[1642673311955,0.00851509,3144.0,3143.9,3.83811965]
[1642673312155,0.00851509,3144.0,3143.9,3.84096177]
[1642673312602,0.00851509,3144.0,3143.9,2.61972818]
[1642673312802,0.00851509,3144.0,3143.9,0.00284212]
[1642673313203,0.00851509,3144.0,3143.6,0.00454739]
[1642673314003,0.00851509,3144.0,3143.8,1.4346069]
[1642673314203,0.00851509,3144.0,3143.9,2.57079521]
[1642673314406,0.00851509,3144.0,3143.9,2.57363733]
[1642673318852,0.00851509,3144.0,3143.9,0.00284212]
[1642673319053,0.00851509,3144.0,3143.9,2.571842]
[1642673319254,0.00851509,3144.0,3143.9,2.57725974]
[1642673320504,0.00851509,3144.0,3143.9,3.57725974]
[1642673321507,0.00851509,3144.0,3143.9,2.57725974]
[1642673325858,0.00851509,3144.0,3143.9,3.57725974]
[1642673328404,0.00851509,3144.0,3143.9,2.57725974]
[1642673328603,0.00851509,3144.0,3143.9,3.57725974]
[1642673332353,0.00851509,3144.0,3143.9,3.73612974]
[1642673334452,0.00851509,3144.0,3143.9,3.57725974]
[1642673340352,0.00851509,3144.0,3143.9,3.73612974]
[1642673342801,0.00851509,3144.0,3143.9,4.91272974]
[1642673343299,0.00851509,3144.0,3143.9,4.75385974]
[1642673344299,0.00851509,3144.0,3143.9,4.75101762]
[1642673344701,0.00851509,3144.0,3143.9,3.57441762]
[1642673353950,1.2212,3145.2,3143.9,3.57441762]
[1642673353951,1.2212,3145.2,3143.9,3.73497253]
[1642673354151,3.9705,3145.4,3144.2,0.79518]
[1642673354352,0.00284212,3144.9,3144.4,0.07520846]
[1642673354552,0.00284212,3144.9,3144.5,0.466]
[1642673354752,0.0022737,3144.8,3144.6,3.61629951]
[1642673354950,0.0022737,3144.8,3144.6,4.38229951]
[1642673355155,1.2211,3145.8,3145.3,0.795]
[1642673355354,1.403069,3145.9,3145.3,3.43575027]
[1642673355555,0.00738951,3145.7,3145.3,3.43575027]
[1642673355954,0.00682108,3145.6,3145.0,2.92907384]
[1642673356154,0.00682108,3145.6,3145.0,3.22907384]
[1642673356354,0.00625266,3145.5,3145.0,3.22907384]
[1642673356755,0.00568424,3145.4,3145.0,3.22907384]
[1642673357155,0.00511581,3145.3,3145.0,3.22907384]
[1642673357355,0.00511581,3145.3,3144.9,3.16107163]
[1642673357605,0.00454739,3145.2,3144.9,3.16107163]
[1642673358005,0.00397897,3145.1,3144.9,3.16107163]
[1642673358405,0.00341054,3145.0,3144.9,3.16107163]
[1642673359005,0.00341054,3145.0,3144.9,9.54095033]
[1642673359205,0.00341054,3145.0,3144.9,9.54333559]
[1642673359906,0.00341054,3145.0,3144.9,10.54333559]
[1642673360910,0.00341054,3145.0,3144.9,7.72107163]
[1642673368418,0.00341054,3145.0,3144.9,7.87994163]
[1642673370264,0.00341054,3145.0,3144.9,7.72107163]
[1642673370662,0.00341054,3145.0,3144.9,10.45055864]
[1642673371261,0.00341054,3145.0,3144.9,7.72107163]
[1642673371665,0.00341054,3145.0,3144.9,10.47723728]
[1642673371864,0.00341054,3145.0,3144.9,7.72107163]
[1642673373909,0.00341054,3145.0,3144.9,0.3]
[1642673374309,0.00341054,3145.0,3144.8,4.79713739]
[1642673374709,0.00284212,3144.9,3144.8,4.79713739]
[1642673374910,0.00284212,3144.9,3144.8,6.28262241]
[1642673375511,0.00284212,3144.9,3144.8,7.00424635]
[1642673376112,0.00284212,3144.9,3144.8,8.00424635]
[1642673376364,0.00284212,3144.9,3144.8,10.7618572]
[1642673376960,0.00284212,3144.9,3144.8,10.732694]
[1642673377361,0.00284212,3144.9,3144.8,8.00424635]
[1642673377962,0.00284212,3144.9,3144.8,7.70424635]
[1642673378164,1.24731456,3145.8,3144.8,7.70424635]
[1642673378362,1.1315,3145.9,3144.8,10.53351541]
[1642673378662,0.00454739,3145.7,3144.8,6.70424635]
[1642673379061,0.00397896,3145.6,3144.8,9.51749654]
[1642673379262,0.00397896,3145.6,3144.8,9.67654838]
[1642673379462,0.00341054,3145.5,3144.8,8.89275582]
[1642673379661,0.00341054,3145.5,3144.8,5.98262241]
[1642673379861,0.00284212,3145.4,3144.8,9.17235971]
[1642673380109,0.00284212,3145.4,3144.8,6.28262241]
[1642673380309,1.1315,3145.9,3144.8,6.28262241]
[1642673380310,0.00227369,3145.3,3144.8,6.28262241]
[1642673380710,0.00170527,3145.2,3144.8,6.28262241]
[1642673381112,0.00113685,3145.1,3144.8,6.28262241]
[1642673382811,0.00113685,3145.1,3144.9,3.84095308]
[1642673383212,0.00113685,3145.1,3145.0,2.95]
[1642673383411,0.00113685,3145.1,3145.0,3.25]
[1642673383612,0.00113685,3145.1,3145.0,4.25]
[1642673383862,0.00113685,3145.1,3145.0,3.25]
[1642673384064,0.00113685,3145.1,3145.0,4.25]
[1642673384263,0.00113685,3145.1,3145.0,3.25]
[1642673384462,0.00113685,3145.1,3145.0,4.25]
[1642673387169,0.00113685,3145.1,3145.0,3.25]
[1642673387370,0.00113685,3145.1,3145.0,4.25]
[1642673387811,0.00113685,3145.1,3145.0,0.3]
[1642673388011,0.00113685,3145.1,3144.8,6.28262241]
[1642673388211,0.00113685,3145.1,3144.8,3.18112241]
[1642673389511,1.29848524,3145.5,3144.8,3.18112241]
[1642673389712,1.29848524,3145.5,3144.9,0.00113685]
[1642673389912,0.00170527,3145.4,3144.9,0.00113685]
[1642673390317,0.00113684,3145.3,3144.9,0.00113685]
[1642673393657,0.00113684,3145.3,3144.9,4.05500771]
[1642673393858,0.00113684,3145.3,3144.9,1.00113685]
[1642673394756,0.00113684,3145.3,3144.9,4.20113685]
[1642673397819,0.00113684,3145.3,3144.9,7.04907422]
[1642673398420,3.684e-05,3145.3,3145.0,1.26097]
[1642673398619,1.22730377,3147.0,3145.3,1.43961107]
[1642673398864,1.1266,3147.1,3145.3,1.43961107]
[1642673398865,5.0796,3147.1,3145.5,0.03260262]
[1642673399064,0.00397897,3146.0,3145.5,0.47804282]
[1642673399268,0.00397897,3146.0,3145.6,2.96531895]
[1642673399462,0.00341054,3145.9,3145.8,7.17879921]
[1642673399664,0.00341054,3145.9,3145.8,10.42882898]
[1642673399862,0.0096632,3145.9,3145.8,14.68054178]
[1642673400268,5.0796,3147.1,3146.9,1.27369441]
[1642673400471,0.60500934,3149.1,3146.9,1.27369441]
[1642673400668,1.1951,3147.9,3147.0,2.67854657]
[1642673400967,0.00113685,3147.2,3147.0,2.64869658]
[1642673401169,0.00113685,3147.2,3146.9,1.27369441]
[1642673401369,0.00113685,3147.2,3147.1,1.22543097]
[1642673402511,1.80123419,3147.8,3147.1,1.22543097]
[1642673402910,0.00284212,3147.7,3147.1,1.22543097]
[1642673403309,0.00227369,3147.6,3146.9,1.27369441]
[1642673403711,0.00170527,3147.5,3147.1,3.15]
[1642673404111,0.00113685,3147.4,3147.1,3.15]
[1642673426014,0.00113685,3147.4,3147.1,3.45]
[1642673426216,0.00113685,3147.4,3147.1,3.7638]
[1642673427117,0.00113685,3147.4,3147.2,0.79451]
[1642673427616,0.00113685,3147.4,3147.2,4.7462228]
[1642673427820,0.00113685,3147.4,3147.3,2.85]
[1642673428016,0.00113685,3147.4,3147.3,3.15]
[1642673428421,0.00113685,3147.4,3147.3,6.1017128]
[1642673428763,0.00113685,3147.4,3147.3,3.15]
[1642673431163,0.00113685,3147.4,3147.2,0.3]
[1642673431363,0.00113685,3147.4,3147.1,4.73902]
[1642673432612,0.00113685,3147.4,3147.2,0.3]
[1642673433413,0.00113685,3147.4,3147.1,3.15]
[1642673435714,0.00113685,3147.4,3147.1,3.144174]
[1642673439172,0.79598685,3147.4,3147.1,3.144174]
[1642673439371,3.57228792,3147.3,3147.1,3.144174]
[1642673439572,4.84881415,3147.2,3147.1,3.144174]
[1642673439772,7.8106569,3147.2,3147.1,3.144174]
[1642673440613,9.1106569,3147.2,3147.1,3.144174]
[1642673440812,9.5766569,3147.2,3147.1,3.144174]
[1642673442814,10.3715869,3147.2,3147.1,3.144174]
[1642673443014,7.40974415,3147.2,3147.1,3.144174]
[1642673443215,2.56093,3147.2,3147.1,3.144174]
[1642673443415,1.766,3147.2,3147.1,3.144174]
[1642673443613,0.766,3147.2,3147.1,3.144174]
[1642673444064,2.966,3147.2,3147.1,3.144174]
[1642673444271,3.966,3147.2,3147.1,3.144174]
[1642673446474,3.96985001,3147.2,3147.1,3.144174]
[1642673447275,1.76985001,3147.2,3147.1,3.144174]
[1642673449926,0.30385001,3147.2,3147.1,3.144174]
[1642673450119,0.00385001,3147.2,3147.1,4.47640013]
[1642673450322,0.30385001,3147.2,3147.1,4.47640013]
[1642673450721,0.00385001,3147.2,3147.1,4.47640013]
[1642673450922,0.30385001,3147.2,3147.1,4.47640013]
[1642673451370,0.30385001,3147.2,3147.1,3.144174]
[1642673451968,0.00385001,3147.2,3147.1,3.144174]
[1642673452171,0.30385001,3147.2,3147.1,3.144174]
[1642673453168,0.00385001,3147.2,3147.1,3.144174]
[1642673453368,0.30385001,3147.2,3147.1,3.144174]
[1642673453768,0.00385001,3147.2,3147.1,3.144174]
[1642673453969,0.30385001,3147.2,3147.1,3.1294876]
[1642673454372,0.00385001,3147.2,3147.1,3.1294876]
[1642673454573,0.30385001,3147.2,3147.1,3.1294876]
[1642673456518,0.00385001,3147.2,3147.1,3.1294876]
[1642673456717,0.30385001,3147.2,3147.1,3.1294876]
[1642673456917,0.30385001,3147.2,3147.1,4.49828545]
[1642673457320,0.00385001,3147.2,3147.1,4.49828545]
[1642673457519,0.30385001,3147.2,3147.1,4.49828545]
[1642673457920,0.00385001,3147.2,3147.1,4.49828545]
[1642673458120,0.30385001,3147.2,3147.1,4.49828545]
[1642673458522,0.00385001,3147.2,3147.1,4.49828545]
[1642673458771,0.00385001,3147.2,3147.1,3.1294876]
[1642673459870,0.00385001,3147.2,3147.1,4.22687517]
[1642673460271,0.00385001,3147.2,3147.1,3.1294876]
[1642673461474,0.3,3147.4,3147.1,3.1294876]
[1642673461674,1.46191223,3147.3,3147.1,3.1294876]
[1642673461873,2.25678223,3147.3,3147.1,3.1294876]
[1642673462073,2.09487,3147.3,3147.1,3.1294876]
[1642673462274,1.3,3147.3,3147.1,3.1294876]
[1642673462516,1.3,3147.4,3147.1,3.1294876]
[1642673462715,0.3,3147.4,3147.1,3.1294876]
[1642673463114,0.76985001,3147.5,3147.1,3.1294876]
[1642673463314,0.76985001,3147.5,3147.1,4.59745178]
[1642673464615,0.46985001,3147.5,3147.1,4.59745178]
[1642673466020,0.00385001,3147.5,3147.4,1.30230194]
[1642673466466,0.00555528,3147.5,3147.4,1.30230194]
[1642673468169,0.00555528,3147.5,3147.1,4.59745178]
[1642673468569,0.00113685,3147.4,3147.1,4.59745178]
[1642673469668,0.00113685,3147.4,3147.1,5.9378208]
[1642673481970,0.00113685,3147.4,3147.2,0.79441]
[1642673482171,0.00113685,3147.4,3147.3,3.9]
[1642673482371,0.00113685,3147.4,3147.3,5.4114]
[1642673482570,0.00113685,3147.4,3147.3,8.39271175]
[1642673482970,0.00113685,3147.4,3147.3,8.55158175]
[1642673483174,0.00113685,3147.4,3147.3,9.55158175]
[1642673483371,0.00113685,3147.4,3147.3,9.39271175]
[1642673483570,0.00113685,3147.4,3147.3,6.4114]
[1642673485220,0.00113685,3147.4,3147.3,6.87027]
[1642673485420,0.00113685,3147.4,3147.3,7.98997]
[1642673485620,0.00113685,3147.4,3147.3,9.23997]
[1642673485822,2.87550576,3148.8,3147.4,5.15]
[1642673486022,2.9517128,3148.7,3147.6,0.79432]
[1642673486220,0.0073895,3148.7,3148.3,1.3601875]
[1642673487822,0.0073895,3148.7,3148.2,1.27882983]
[1642673488022,0.0073895,3148.7,3147.8,0.3]
[1642673488424,0.0073895,3148.7,3147.8,2.89291205]
[1642673489268,0.0073895,3148.7,3148.3,1.29250794]
[1642673492271,0.0073895,3148.7,3148.2,1.24662501]
[1642673494321,0.0073895,3148.7,3148.2,2.39757975]
[1642673498580,0.0073895,3148.7,3148.2,2.69757975]
[1642673499381,0.0073895,3148.7,3147.9,2.7417019]
[1642673499579,0.0073895,3148.7,3147.8,3.5]
[1642673499580,0.7944512,3148.6,3147.8,3.5]
[1642673499780,0.7944512,3148.6,3147.8,3.2]
[1642673500019,0.47225265,3148.5,3147.8,3.2]
[1642673500423,0.00568423,3148.4,3147.9,1.10625814]
[1642673500622,0.47168423,3148.4,3147.9,1.10625814]
[1642673500822,1.25180127,3148.3,3147.9,1.10625814]
[1642673501023,1.25180127,3148.3,3147.8,3.2]
[1642673501222,0.00454738,3148.2,3147.8,3.2]
[1642673501626,0.00397896,3148.1,3147.8,3.2]
[1642673502023,0.00341054,3148.0,3147.8,4.58954427]
[1642673502427,0.00284211,3147.9,3147.8,4.58954427]
[1642673502625,0.00284211,3147.9,3147.8,3.2]
[1642673502825,3.50284211,3147.9,3147.8,3.2]
[1642673503024,3.80284211,3147.9,3147.8,3.2]
[1642673503227,4.6325804,3147.9,3147.8,3.2]
[1642673503425,6.7485804,3147.9,3147.8,3.2]
[1642673503625,7.7485804,3147.9,3147.8,3.2]
[1642673504070,4.9,3147.8,3147.3,1.2151]
[1642673504275,1.2607821,3147.7,3147.1,3.7507]
[1642673504471,1.40163758,3147.4,3146.7,5.58325274]
[1642673504670,1.40163758,3147.4,3147.2,0.00113685]
[1642673504871,4.766,3147.3,3147.2,0.00113685]
[1642673505475,4.766,3147.3,3146.9,1.40658622]
[1642673505677,0.466,3147.3,3147.0,0.0022737]
[1642673505976,1.29917501,3147.3,3147.0,0.0022737]
[1642673506175,0.3,3147.2,3147.0,0.0022737]
[1642673508119,0.3,3147.2,3146.6,0.00454739]
[1642673508920,0.3,3147.2,3146.6,1.46781172]
[1642673509221,0.3,3147.2,3146.7,0.00397897]
[1642673509620,0.766,3147.3,3146.7,0.00397897]
[1642673509821,0.3,3147.3,3146.7,0.00397897]
[1642673510020,1.52453684,3147.6,3146.7,0.00397897]
[1642673510223,1.52453684,3147.6,3146.7,3.20397897]
[1642673510624,1.52453684,3147.6,3146.8,0.00341054]
[1642673510825,2.91523685,3147.6,3146.8,0.00341054]
[1642673520277,5.83449817,3147.6,3146.8,0.00341054]
[1642673520678,6.62929817,3147.6,3146.8,0.00341054]
[1642673520877,1.466,3147.5,3146.8,0.00341054]
[1642673521078,4.94454891,3147.4,3146.8,0.00341054]
[1642673521281,0.47625271,3147.3,3146.8,0.00341054]
[1642673521479,1.47625271,3147.3,3146.8,0.00341054]
[1642673521976,1.466,3147.3,3146.8,0.00341054]
[1642673522178,2.26096,3147.3,3146.8,0.00341054]
[1642673522381,3.0559,3147.3,3146.8,0.00341054]
[1642673522624,0.3,3147.2,3146.8,0.00341054]
[1642673522825,0.466,3147.1,3146.8,0.00341054]
[1642673523625,2.90129781,3147.0,3146.8,0.00341054]
[1642673523828,5.96465819,3146.9,3146.8,0.00341054]
[1642673524227,2.26465819,3146.9,3146.8,0.00341054]
[1642673525034,4.66465819,3146.9,3146.8,0.00341054]
[1642673525432,2.26465819,3146.9,3146.8,0.00341054]
[1642673531122,0.466,3146.9,3146.8,0.00341054]
[1642673531324,0.03343332,3147.3,3146.8,0.00341054]
[1642673531522,0.466,3147.5,3146.8,0.00341054]
[1642673531923,1.26084,3147.5,3146.8,0.00341054]
[1642673532523,1.56084,3147.5,3146.8,0.00341054]
[1642673532723,1.23053212,3147.0,3146.8,0.00341054]
[1642673533323,1.53053212,3147.0,3146.8,0.00341054]
[1642673533524,2.36056837,3147.0,3146.8,0.00341054]
[1642673533781,3.15551027,3147.0,3146.8,0.00341054]
[1642673533971,3.19247539,3147.0,3146.8,0.00341054]
[1642673535478,3.15551027,3147.0,3146.8,0.00341054]
[1642673535875,2.36056837,3147.0,3146.8,0.00341054]
[1642673537526,4.15546577,3147.0,3146.8,0.00341054]
[1642673537726,4.19298306,3147.0,3146.8,0.00341054]
[1642673537927,4.65898306,3147.0,3146.8,0.00341054]
[1642673539328,3.65898306,3147.0,3146.8,0.00341054]
[1642673540533,3.65898306,3147.0,3146.7,3.2]
[1642673544274,2.85976653,3147.0,3146.7,3.2]
[1642673544474,2.82656837,3147.0,3146.7,3.2]
[1642673545927,3.62148817,3147.0,3146.7,3.2]
[1642673546126,1.3,3146.9,3146.7,3.2]
[1642673546326,5.366,3146.8,3146.7,3.2]
[1642673546525,6.366,3146.8,3146.7,3.2]
[1642673546725,6.366,3146.8,3146.7,3.20397897]
[1642673547424,5.366,3146.8,3146.7,3.20397897]
[1642673547625,6.366,3146.8,3146.7,3.20397897]
[1642673548224,9.37189237,3146.8,3146.7,3.20397897]
[1642673548876,9.67189237,3146.8,3146.7,3.20397897]
[1642673553824,4.77189237,3146.8,3146.7,3.20397897]
[1642673554922,4.47189237,3146.8,3146.7,3.20397897]
[1642673555529,3.47189237,3146.8,3146.7,3.20397897]
[1642673555727,2.966,3146.8,3146.7,3.20397897]
[1642673556373,0.466,3146.8,3146.7,3.20397897]
[1642673556772,0.766,3146.8,3146.7,3.20397897]
[1642673557371,0.3,3146.8,3146.7,3.20397897]
[1642673557577,5.59399768,3147.3,3146.7,3.20397897]
[1642673557578,3.79913768,3147.3,3146.7,3.20397897]
[1642673557971,3.79913768,3147.3,3146.8,0.00341054]
[1642673558672,4.94713074,3147.3,3146.8,0.00341054]
[1642673558875,0.3,3147.2,3146.8,0.00341054]
[1642673560729,3.03052113,3147.1,3146.8,0.00341054]
[1642673562129,2.5898738,3147.0,3146.8,0.00341054]
[1642673562331,6.17525151,3146.9,3146.8,0.00341054]
[1642673562532,7.17525151,3146.9,3146.8,0.00341054]
[1642673562730,7.94125151,3146.9,3146.8,0.00341054]
[1642673562930,3.64125151,3146.9,3146.8,0.00341054]
[1642673563131,4.64125151,3146.9,3146.8,0.00341054]
[1642673563774,3.64125151,3146.9,3146.8,0.00341054]
[1642673564771,0.766,3146.9,3146.8,0.00341054]
[1642673565573,3.67372029,3146.9,3146.8,0.00341054]
[1642673565773,0.766,3146.9,3146.8,0.00341054]
[1642673566677,2.816,3146.9,3146.8,0.00341054]
[1642673566975,5.70244144,3146.9,3146.8,0.00341054]
[1642673567374,2.816,3146.9,3146.8,0.00341054]
[1642673567824,5.70221734,3146.9,3146.8,0.00341054]
[1642673569023,6.70221734,3146.9,3146.8,0.00341054]
[1642673569826,3.65,3146.8,3146.7,3.2]
[1642673570024,7.57590931,3146.8,3146.7,3.2]
[1642673570229,8.04190931,3146.8,3146.7,3.2]
[1642673570431,4.39190931,3146.8,3146.7,3.2]
[1642673570629,1.466,3146.8,3146.7,3.2]
[1642673570829,4.53413951,3146.8,3146.7,3.2]
[1642673571475,1.466,3146.8,3146.7,3.2]
[1642673571675,0.466,3146.8,3146.7,3.2]
[1642673571878,4.42252353,3146.8,3146.7,3.2]
[1642673572676,1.466,3146.8,3146.7,3.2]
[1642673572975,20.176,3146.8,3146.7,3.2]
[1642673573377,1.466,3146.8,3146.7,3.2]
[1642673573577,0.466,3146.8,3146.7,3.2]
[1642673573776,1.466,3146.8,3146.7,3.2]
[1642673574179,0.466,3146.8,3146.7,3.2]
[1642673578880,19.176,3146.8,3146.7,3.2]
[1642673579080,20.176,3146.8,3146.7,3.2]
[1642673579982,1.24305724,3146.0,3145.7,3.8016]
[1642673580186,1.24305724,3146.0,3145.1,3.1715]
[1642673580386,1.54305724,3146.0,3145.8,0.00568424]
[1642673581286,2.00905724,3146.0,3145.8,0.00568424]
[1642673581485,2.00905724,3146.0,3145.3,0.00852636]